fUSD/lending_fUSD_20251230
["ID","MTS","AMOUNT","RATE_DAILY","PERIOD"]
[400050004,1767052806903,-184.75352047,0.00013422,2]
[400050005,1767052806929,-16.66586284,0.00013422,2]
[400050007,1767052834054,-243.33413716,0.00013422,2]
[400050008,1767052834604,-166.66,0.0001353,2]
[400050011,1767052837807,-133.34,0.0001353,2]
[400050012,1767052837832,-201.86313919,0.00013638,2]
[400050038,1767053431417,-203.92603745,0.00013737,2]
[400050040,1767053431427,-98.11803277,0.00013737,2]
[400050046,1767053431474,-164.88196723,0.00013737,2]
[400050048,1767053431485,-185.58755146,0.00013837,2]
[400050050,1767053431495,-463.14,0.00013855,2]
[400050052,1767053431505,-489.188927,0.00014216,2]
[400050054,1767053431515,-463.14,0.00014287,2]
[400050056,1767053431525,-999.0,0.0001456,3]
[400050058,1767053431535,-463.14,0.0001472,2]
[400050060,1767053431545,-1000.0,0.00014888,2]
[400050062,1767053431555,-200.0,0.00014968,2]
[400050064,1767053431564,-463.14,0.00015153,2]
[400050066,1767053431575,-300.0,0.0001522,2]
[400050067,1767053431584,-300.0,0.0001522,2]
[400050068,1767053431594,-300.0,0.0001522,2]
[400050069,1767053431604,-189.99827094,0.00015221,2]
[400050070,1767053431613,-3240.0,0.00015554,2]
[400050071,1767053431623,-463.14,0.00015586,2]
[400050072,1767053431633,-8531.93374323,0.0001565,2]
[400050073,1767053431645,-5881.96855336,0.0001565,2]
[400050074,1767053431661,-911.69251022,0.0001565,2]
[400050075,1767053431673,-2422.07999342,0.0001565,2]
[400050076,1767053431684,-98677.32215502,0.0001565,2]
[400050078,1767053431696,-39607.96322952,0.0001565,2]
[400050080,1767053431707,-8730.91381523,0.0001565,2]
[400050082,1767053431718,-150.0,0.00015735,2]
[400050084,1767053431727,-150.0,0.00015749,2]
[400050086,1767053431737,-283.01,0.0001575,2]
[400050087,1767053431747,-500.0,0.0001575,2]
[400050088,1767053431756,-500.0,0.0001575,2]
[400050089,1767053431766,-385.4280122,0.0001575,2]
[400050090,1767053431776,-500.0,0.0001575,2]
[400050091,1767053431785,-500.0,0.0001575,2]
[400050092,1767053431799,-500.48470308,0.0001575,2]
[400050093,1767053431812,-549.61649395,0.0001575,2]
[400050094,1767053431822,-500.0,0.0001575,2]
[400050095,1767053431833,-315.76474651,0.0001575,2]
[400050098,1767053431843,-476.61576243,0.0001575,2]
[400050099,1767053431852,-216.51590329,0.0001575,2]
[400050100,1767053431862,-501.82675506,0.0001575,2]
[400050101,1767053431873,-500.0,0.0001575,2]
[400050102,1767053431883,-318.77837914,0.0001575,2]
[400050103,1767053431893,-500.0,0.0001575,2]
[400050104,1767053431903,-500.0,0.0001575,2]
[400050105,1767053431913,-539.36053527,0.0001575,2]
[400050106,1767053431923,-500.0,0.0001575,2]
[400050107,1767053431932,-500.0,0.0001575,2]
[400050108,1767053431941,-1582.533,0.00015762,2]
[400050109,1767053431951,-888.61892686,0.00015766,2]
[400050110,1767053431961,-203.92603744,0.00015769,2]
[400050111,1767053431971,-214.8,0.0001581,2]
[400050112,1767053431980,-151.0,0.0001581,2]
[400050113,1767053431990,-151.0,0.0001581,2]
[400050114,1767053432000,-151.0,0.0001581,2]
[400050115,1767053432009,-151.0,0.0001581,2]
[400050116,1767053432018,-151.0,0.0001581,2]
[400050117,1767053432028,-500.0,0.0001581,2]
[400050118,1767053432038,-151.0,0.0001581,2]
[400050119,1767053432046,-151.0,0.0001581,2]
[400050120,1767053432056,-151.0,0.0001581,2]
[400050121,1767053432066,-151.0,0.0001581,2]
[400050122,1767053432075,-151.0,0.0001581,2]
[400050123,1767053432085,-6183.94064004,0.00015819,2]
[400050124,1767053432095,-151.0,0.00015852,2]
[400050125,1767053432105,-500.0,0.00015854,2]
[400050126,1767053432114,-500.0,0.00015854,2]
[400050127,1767053432123,-500.0,0.00015854,2]
[400050128,1767053432133,-500.0,0.00015854,2]
[400050129,1767053432142,-267.76875481,0.00015854,2]
[400050130,1767053432152,-151.0,0.00015904,2]
[400050131,1767053432161,-151.0,0.00015904,2]
[400050132,1767053432171,-463.14,0.00016019,2]
[400050133,1767053432180,-283.01,0.00016024,2]
[400050134,1767053432190,-865.9747471,0.00016043,2]
[400050135,1767053432199,-500.0,0.00016247,2]
[400050136,1767053432208,-500.0,0.00016298,2]
[400050137,1767053432218,-283.01,0.00016298,2]
[400050138,1767053432227,-4717.43571926,0.00016438,2]
[400050139,1767053432244,-630.31,0.00016438,2]
[400050145,1767053437638,-151.0,0.00015903,2]
[400050146,1767053437648,-151.0,0.00015903,2]
[400050147,1767053437658,-786.54428074,0.00016438,2]
[400050148,1767053437668,-463.14,0.00016452,2]
[400050149,1767053437678,-283.01,0.00016572,2]
[400050150,1767053437687,-212.78214144,0.00016654,2]
[400050151,1767053437699,-207.21785856,0.00016654,2]
[400050152,1767053437709,-1000.0,0.00016749,2]
[400050153,1767053437719,-283.02,0.00016846,2]
[400050154,1767053437729,-174.21462703,0.000169,2]
[400050155,1767053437738,-1086.98294495,0.00016933,2]
[400050156,1767053437748,-222.04159557,0.00016973,2]
[400050157,1767053437757,-505.70087023,0.00016983,2]
[400050158,1767053437767,-151.0,0.00016997,2]
[400050159,1767053437777,-151.0,0.00016997,2]
[400050160,1767053437786,-11918.1213089,0.00017,2]
[400050161,1767053437808,-22877.13477734,0.00017,2]
[400050162,1767053437824,-551.09530478,0.00017,2]
[400050163,1767053437836,-896.94,0.00017,2]
[400050344,1767053439811,-443.01675386,0.000169,2]
[400050346,1767053439823,-1357.38931535,0.000169,2]
[400050348,1767053439833,-251.97430609,0.00016999,2]
[400050350,1767053439843,-732838.58205835,0.00017,2]
[400050352,1767053439853,-250.0,0.00017,2]
[400050354,1767053439863,-2000.0,0.00017,2]
[400050356,1767053439872,-200.0,0.00017,2]
[400050358,1767053439882,-200.0,0.00017,2]
[400050360,1767053439892,-237.34355763,0.00017,2]
[400050362,1767053439902,-646.1,0.0001702,2]
[400050364,1767053439911,-220.0,0.00017026,2]
[400050366,1767053439921,-200.0,0.0001717,2]
[400050369,1767053439931,-220.0,0.00017185,2]
[400050371,1767053439940,-220.0,0.00017206,2]
[400050372,1767053439950,-220.0,0.00017292,2]
[400050375,1767053439960,-200.0,0.00017342,2]
[400050377,1767053439969,-220.0,0.00017503,2]
[400050379,1767053439978,-200.0,0.00017515,2]
[400050380,1767053439988,-220.0,0.00017515,2]
[400050383,1767053439998,-220.0,0.00017555,2]
[400050385,1767053440008,-220.0,0.00017556,2]
[400050387,1767053440018,-220.0,0.00017588,2]
[400050389,1767053440027,-167.51,0.00017612,2]
[400050391,1767053440036,-220.0,0.00017639,2]
[400050393,1767053440046,-200.0,0.0001769,2]
[400050395,1767053440056,-220.0,0.00017699,2]
[400050397,1767053440066,-220.0,0.00017706,2]
[400050399,1767053440076,-220.0,0.00017887,2]
[400050401,1767053440086,-3584.53505189,0.000179,2]
[400050403,1767053440095,-220.0,0.00017926,2]
[400050405,1767053440105,-220.0,0.00017934,2]
[400050407,1767053440114,-220.0,0.0001798,2]
[400050409,1767053440124,-151.0,0.00017995,2]
[400050411,1767053440134,-148097.81842165,0.00017998,2]
[400050413,1767053440143,-300.0,0.00017999,2]
[400050415,1767053440153,-300.0,0.00017999,2]
[400050417,1767053440163,-395376.06063863,0.00018,2]
[400050419,1767053440173,-151.0,0.00018,2]
[400050421,1767053440182,-151.0,0.00018,2]
[400050423,1767053440192,-151.0,0.00018,2]
[400050425,1767053440201,-151.0,0.00018,2]
[400050427,1767053440211,-151.0,0.00018,2]
[400050430,1767053440221,-151.0,0.00018,2]
[400050432,1767053440231,-151.0,0.00018,2]
[400050434,1767053440241,-151.0,0.00018,2]
[400050436,1767053440250,-162.88745,0.00018,2]
[400050438,1767053440262,-162.88745,0.00018,2]
[400050440,1767053440272,-162.88745,0.00018,2]
[400050442,1767053440282,-162.88745,0.00018,2]
[400050444,1767053440292,-151.0,0.00018,2]
[400050446,1767053440302,-151.0,0.00018,2]
[400050448,1767053440312,-151.0,0.00018,2]
[400050450,1767053440322,-151.0,0.00018,2]
[400050452,1767053440336,-151.0,0.00018,2]
[400050454,1767053440345,-151.0,0.00018,2]
[400050456,1767053440355,-151.0,0.00018,2]
[400050458,1767053440365,-170.582746,0.00018,2]
[400050460,1767053440377,-338.276254,0.00018,2]
[400050463,1767053440387,-338.276254,0.00018,2]
[400050465,1767053440397,-338.276254,0.00018,2]
[400050467,1767053440406,-338.276254,0.00018,2]
[400050469,1767053440415,-409.630797,0.00018,2]
[400050471,1767053440425,-409.630797,0.00018,2]
[400050473,1767053440434,-409.630797,0.00018,2]
[400050475,1767053440443,-409.630797,0.00018,2]
[400050477,1767053440453,-288.792626,0.00018,2]
[400050479,1767053440463,-1000.0,0.00018082,2]
[400050481,1767053440474,-587.0,0.00018222,2]
[400050483,1767053440483,-1000.0,0.0001861,2]
[400050485,1767053440493,-150.49853112,0.00018737,5]
[400050487,1767053440502,-1000.0,0.0001876,2]
[400050489,1767053440511,-153.44,0.000188,2]
[400050491,1767053440521,-6183.94064002,0.00018814,2]
[400050493,1767053440531,-152.32,0.00018907,2]
[400050495,1767053440541,-646.1,0.00018911,2]
[400050497,1767053440551,-167.51,0.00018955,2]
[400050499,1767053440561,-203.06557908,0.00019,2]
[400050501,1767053440571,-4398.38249145,0.00019,2]
[400050503,1767053440581,-151.0,0.00019178,2]
[400050505,1767053440591,-3021.08369,0.00019178,2]
[400050507,1767053440601,-3021.08369,0.00019178,2]
[400050509,1767053440612,-3021.08369,0.00019178,2]
[400050512,1767053440622,-3021.08369,0.00019178,2]
[400050514,1767053440633,-431.43127087,0.00019188,2]
[400050516,1767053440643,-334.74135924,0.00019188,2]
[400050518,1767053440653,-1000.0,0.00019438,2]
[400050520,1767053440663,-888.61892686,0.00019624,2]
[400050522,1767053440673,-154.17002449,0.00019898,2]
[400050524,1767053440683,-463.0,0.00019939,2]
[400050526,1767053440692,-1000.0,0.00020116,2]
[400050528,1767053440702,-240.67,0.00020187,2]
[400050530,1767053440712,-1000.0,0.00020471,2]
[400050532,1767053440721,-2000.0,0.000207,2]
[400050534,1767053440730,-1000.0,0.00020795,2]
[400050536,1767053440740,-646.1,0.00020802,2]
[400050538,1767053440750,-1257.0,0.00021313,2]
[400050540,1767053440760,-3461.0,0.0002152,2]
[400050542,1767053440770,-433.869,0.00021541,2]
[400050544,1767053440780,-6539.0,0.00021541,2]
[400050546,1767053440789,-4810.0,0.00021541,2]
[400050548,1767053440799,-576.965,0.00021541,2]
[400050550,1767053440808,-152.32,0.00021609,2]
[400050552,1767053440817,-305.0,0.000217,2]
[400050554,1767053440827,-150.0,0.000217,2]
[400050556,1767053440837,-6183.94064002,0.00021808,2]
[400050558,1767053440848,-5000.0,0.00021918,2]
[400050560,1767053440859,-248.90105556,0.00022203,2]
[400050561,1767053440871,-8181.34,0.00022247,2]
[400050562,1767053440882,-3828.3,0.000223,7]
[400050563,1767053440892,-214.94,0.000223,7]
[400050564,1767053440903,-1000.0,0.00022332,2]
[400050565,1767053440913,-500.0,0.00022438,2]
[400050566,1767053440924,-8665.12,0.00022562,2]
[400050567,1767053440934,-646.1,0.00022693,2]
[400050568,1767053440945,-849.0,0.000233,2]
[400050570,1767053440955,-976.0,0.000233,2]
[400050572,1767053440965,-888.61892686,0.00023482,2]
[400050574,1767053440978,-16650.70081165,0.00024,2]
[400050576,1767053440988,-1018.46525943,0.00024,2]
[400050578,1767053440998,-3600.0,0.00024,2]
[400050580,1767053441008,-320.3860841,0.00024,2]
[400050582,1767053441018,-150.0,0.00024175,2]
[400050584,1767053441028,-3705.0,0.00024305,2]
[400050586,1767053441037,-152.32,0.0002431,2]
[400050588,1767053441047,-500.0,0.00024317,2]
[400050590,1767053441056,-553.64373807,0.00024317,2]
[400050592,1767053441066,-322.6107,0.00024317,2]
[400050594,1767053441076,-151.0,0.00024317,2]
[400050597,1767053441085,-200.0,0.00024317,2]
[400050599,1767053441095,-207.4,0.00024317,2]
[400050601,1767053441104,-283.30474741,0.00024317,2]
[400050603,1767053441114,-620.0,0.00024317,2]
[400050605,1767053441124,-2000.0,0.000244,2]
[400050607,1767053441134,-564.0,0.00024541,2]
[400050609,1767053441143,-1000.0,0.00024658,2]
[400050611,1767053441152,-151.0,0.00024658,2]
[400050613,1767053441163,-263.10311006,0.000248,3]
[400050615,1767053441173,-6183.94064002,0.00024803,2]
[400050617,1767053441182,-574.12855637,0.00024865,2]
[400050619,1767053441192,-595.37131296,0.00025413,2]
[400050621,1767053441202,-334.5472959,0.00025686,2]
[400050623,1767053441211,-286.16073191,0.00025686,2]
[400050625,1767053441220,-617.40005154,0.00025961,2]
[400050627,1767053441230,-3828.3,0.000264,7]
[400050629,1767053441239,-214.94,0.000264,7]
[400050632,1767053441255,-640.24385345,0.00026509,2]
[400050634,1767053441265,-240.67,0.00026676,2]
[400050636,1767053441275,-260.52700895,0.00027055,2]
[400050638,1767053441284,-663.93287602,0.00027057,2]
[400050663,1767053441517,-150.0,0.00027175,2]
[400050665,1767053441528,-888.61892686,0.0002734,2]
[400050667,1767053441543,-150.0,0.00027369,2]
[400050670,1767053441553,-160.85,0.00027397,30]
[400050672,1767053441563,-500.0,0.00027397,20]
[400050674,1767053441573,-153.0,0.00027397,2]
[400050676,1767053441583,-153.0,0.00027397,2]
[400050678,1767053441592,-153.0,0.00027397,2]
[400050680,1767053441601,-153.0,0.00027397,2]
[400050682,1767053441612,-153.0,0.00027397,2]
[400050684,1767053441621,-153.0,0.00027397,2]
[400050686,1767053441631,-153.0,0.00027397,2]
[400050688,1767053441641,-153.0,0.00027397,2]
[400050690,1767053441651,-153.0,0.00027397,2]
[400050692,1767053441661,-153.0,0.00027397,2]
[400050694,1767053441671,-153.0,0.00027397,2]
[400050696,1767053441680,-153.0,0.00027397,2]
[400050698,1767053441690,-164.0,0.00027397,2]
[400050700,1767053441699,-153.0,0.00027397,2]
[400050702,1767053441709,-153.0,0.00027397,2]
[400050704,1767053441719,-153.0,0.00027397,2]
[400050706,1767053441729,-153.0,0.00027397,2]
[400050708,1767053441738,-153.0,0.00027397,2]
[400050710,1767053441748,-235.0,0.00027397,2]
[400050713,1767053441758,-498.0,0.00027479,2]
[400050715,1767053441767,-564.0,0.00027541,2]
[400050717,1767053441777,-688.49839244,0.00027605,2]
[400050719,1767053441787,-6134.29,0.00027671,2]
[400050721,1767053441798,-6183.94064002,0.00027798,2]
[400050723,1767053441807,-2000.0,0.000281,2]
[400050725,1767053441817,-713.97283296,0.00028153,2]
[400050727,1767053441827,-159.92,0.00028633,14]
[400050729,1767053441836,-740.38982778,0.00028701,2]
[400050731,1767053441846,-288.95,0.00029221,14]
[400050733,1767053441856,-216.26765932,0.00029249,2]
[400050735,1767053441867,-200.0,0.0003013,2]
[400050737,1767053441876,-7040.59966886,0.0003013,2]
[400050739,1767053441887,-432.0,0.00030137,7]
[400050742,1767053441901,-469.8,0.00030137,7]
[400050744,1767053441911,-311.6,0.00030137,6]
[400050746,1767053441921,-421.0,0.00030137,3]
[400050748,1767053441930,-277.07007819,0.00030137,6]
[400050750,1767053441940,-229.51,0.000302,30]
[400050752,1767053441950,-6183.94064002,0.00030792,2]
[400050754,1767053441960,-1000.0,0.000311,2]
[400050756,1767053441969,-888.61892686,0.00031197,2]
[400050758,1767053441978,-160.85,0.00031723,30]
[400050760,1767053441988,-1699.0,0.000318,2]
[400050762,1767053441999,-347.14482896,0.0003216,2]
[400050764,1767053442009,-157.07838369,0.00032426,2]
[400050766,1767053442020,-206.0,0.0003286,30]
[400050768,1767053442030,-16005.48341249,0.00033,13]
[400050770,1767053442039,-45480.95463875,0.00033,2]
[400050772,1767053442049,-1988.96156541,0.00033,2]
[400050775,1767053442059,-1907.27647102,0.00033,2]
[400050777,1767053442069,-152.85154455,0.00033,2]
[400050779,1767053442078,-12712.42810976,0.00033,13]
[400050781,1767053442089,-240.67,0.00033165,2]
[400050783,1767053442098,-214.94,0.000334,14]
[400050785,1767053442108,-6183.94064002,0.00033787,2]
[400050787,1767053442118,-200.0,0.00034033,2]
[400050789,1767053442128,-3828.3,0.000343,14]
[400050791,1767053442138,-206.0,0.0003488,30]
[400050793,1767053442148,-365.12785595,0.00035,30]
[400050795,1767053442158,-888.61892686,0.00035055,2]
[400050797,1767053442168,-1699.0,0.000355,2]
[400050799,1767053442178,-999.0,0.00035616,120]
[400050801,1767053442188,-207.73447,0.00035888,30]
[400050803,1767053442198,-1091.19,0.00036,30]
[400050805,1767053442208,-229.51,0.00036,30]
[400050807,1767053442218,-659.15029771,0.00036,2]
[400050810,1767053442228,-160.85,0.00036049,30]
[400050812,1767053442237,-207.73447,0.00036088,30]
[400050814,1767053442247,-207.73447,0.00036288,30]
[400050816,1767053442257,-207.73447,0.00036488,30]
[400050818,1767053442271,-207.73447,0.00036688,30]
[400050820,1767053442282,-214.94,0.000367,14]
[400050822,1767053442291,-1091.19,0.0003672,30]
[400050824,1767053442301,-6183.94064002,0.00036782,2]
[400050828,1767053442311,-207.73447,0.00036888,30]
[400050830,1767053442320,-692.4482,0.00036888,7]
[400050833,1767053442334,-206.0,0.0003689,30]
[400050835,1767053442343,-150.0,0.00036962,7]
[400050837,1767053442353,-150.0,0.00036962,7]
[400050839,1767053442362,-150.0,0.00036962,7]
[400050841,1767053442373,-150.0,0.00036962,7]
[400050843,1767053442383,-150.0,0.00036962,7]
[400050845,1767053442394,-150.0,0.00036962,7]
[400050847,1767053442406,-150.0,0.00036962,7]
[400050849,1767053442416,-150.0,0.00036962,7]
[400050851,1767053442426,-150.0,0.00036962,7]
[400050853,1767053442435,-150.0,0.00036962,7]
[400050855,1767053442444,-150.0,0.00036962,7]
[400050857,1767053442454,-801.758491,0.00036986,31]
[400050860,1767053442467,-801.758491,0.00036986,31]
[400050862,1767053442477,-801.758491,0.00036986,31]
[400050864,1767053442486,-801.758491,0.00036986,31]
[400050866,1767053442497,-151.0,0.00036986,10]
[400050868,1767053442507,-151.0,0.00036986,31]
[400050870,1767053442516,-167.167504,0.00036986,31]
[400050872,1767053442526,-167.167504,0.00036986,31]
[400050874,1767053442536,-167.167504,0.00036986,31]
[400050876,1767053442546,-167.167504,0.00036986,31]
[400050878,1767053442556,-151.0,0.00036986,31]
[400050881,1767053442565,-159.299496,0.00036986,31]
[400050883,1767053442575,-151.0,0.00036986,31]
[400050885,1767053442584,-151.0,0.00036986,31]
[400050887,1767053442594,-151.0,0.00036986,31]
[400050889,1767053442604,-151.0,0.00036986,31]
[400050891,1767053442613,-151.0,0.00036986,31]
[400050893,1767053442623,-151.0,0.00036986,31]
[400050895,1767053442633,-151.0,0.00036986,31]
[400050897,1767053442643,-151.0,0.00036986,31]
[400050899,1767053442653,-151.0,0.00036986,31]
[400050901,1767053442665,-151.0,0.00036986,31]
[400050903,1767053442675,-151.0,0.00036986,31]
[400050906,1767053442685,-1049.576533,0.00036986,31]
[400050908,1767053442695,-1049.576533,0.00036986,31]
[400050910,1767053442705,-1049.576533,0.00036986,31]
[400050912,1767053442715,-1049.576533,0.00036986,31]
[400050914,1767053442725,-151.0,0.00036986,31]
[400050916,1767053442735,-151.0,0.00036986,31]
[400050918,1767053442745,-151.0,0.00036986,31]
[400050920,1767053442754,-150.0,0.00037,120]
[400050922,1767053442764,-150.0,0.00037,120]
[400050924,1767053442774,-207.73447,0.00037088,30]
[400050926,1767053442784,-207.73447,0.00037288,30]
[400050928,1767053442793,-207.73447,0.00037488,30]
[400050930,1767053442804,-157.07838369,0.00037601,2]
[400050932,1767053442814,-207.73447,0.00037688,30]
[400050934,1767053442824,-3828.3,0.000377,14]
[400050936,1767053442834,-207.73447,0.00037888,30]
[400050938,1767053442844,-150.0,0.00038,120]
[400050940,1767053442853,-207.73447,0.00038088,30]
[400050943,1767053442863,-207.73447,0.00038288,30]
[400050945,1767053442874,-648.0,0.00038356,35]
[400050947,1767053442885,-704.7,0.00038356,21]
[400050949,1767053442894,-467.4,0.00038356,46]
[400050951,1767053442905,-631.5,0.00038356,26]
[400050953,1767053442915,-415.60511729,0.00038356,42]
[400050955,1767053442925,-207.80255864,0.00038356,34]
[400050957,1767053442935,-207.73447,0.00038488,30]
[400050959,1767053442944,-300.0,0.000386,2]
[400050961,1767053442954,-300.0,0.000386,2]
[400050963,1767053442964,-368.11189296,0.000386,2]
[400050965,1767053442973,-300.0,0.000386,2]
[400050967,1767053442983,-602.56040531,0.000386,2]
[400050969,1767053442993,-428.92777677,0.000386,2]
[400050972,1767053443003,-644.49445733,0.000386,2]
[400050974,1767053443013,-300.0,0.000386,2]
[400050976,1767053443023,-300.0,0.000386,2]
[400050978,1767053443032,-601.74887126,0.000386,2]
[400050981,1767053443051,-300.0,0.000386,2]
[400050984,1767053443068,-300.0,0.000386,2]
[400050986,1767053443078,-506.94193862,0.000386,2]
[400050988,1767053443089,-300.0,0.000386,2]
[400050990,1767053443099,-300.0,0.000386,2]
[400050992,1767053443111,-362.62470523,0.000386,2]
[400050994,1767053443122,-300.0,0.000386,2]
[400050996,1767053443132,-207.73447,0.00038688,30]
[400050997,1767053443142,-6134.29,0.00038904,2]
[400050998,1767053443152,-206.0,0.0003891,30]
[400050999,1767053443162,-888.61892686,0.00038913,2]
[400051000,1767053443173,-150.0,0.00039,120]
[400051001,1767053443183,-150.0,0.00039015,7]
[400051002,1767053443193,-150.0,0.00039015,7]
[400051003,1767053443204,-207.73447,0.00039088,30]
[400051004,1767053443213,-207.73447,0.00039288,30]
[400051006,1767053443224,-1582.533,0.00039322,54]
[400051008,1767053443234,-207.73447,0.00039488,30]
[400051010,1767053443244,-240.67,0.00039654,2]
[400051012,1767053443255,-207.73447,0.00039688,30]
[400051014,1767053443264,-6183.94064002,0.00039776,2]
[400051016,1767053443273,-207.73447,0.00039888,30]
[400051018,1767053443283,-10000.0,0.000399,2]
[400051020,1767053443293,-155.53651584,0.000399,120]
[400051022,1767053443303,-284.28656562,0.00039999,31]
[400051024,1767053443314,-278.34888587,0.00039999,31]
[400051026,1767053443324,-500.0,0.00039999,31]
[400051029,1767053443340,-191.06977914,0.00039999,31]
[400051031,1767053443351,-1320.08,0.0004,2]
[400051033,1767053443361,-333.63834331,0.0004,2]
[400051035,1767053443371,-161.0,0.0004,120]
[400051037,1767053443383,-152.0,0.0004,120]
[400051039,1767053443393,-2301.4348263,0.0004,25]
[400051041,1767053443402,-2000.0,0.0004,90]
[400051043,1767053443413,-150.0,0.0004,120]
[400051045,1767053443423,-2500.0,0.0004,120]
[400051047,1767053443434,-700.0,0.0004,120]
[400051049,1767053443444,-207.73447,0.00040088,30]
[400051051,1767053443453,-207.73447,0.00040288,30]
[400051053,1767053443463,-160.85,0.00040375,120]
[400051055,1767053443473,-250.79,0.00040411,2]
[400051057,1767053443482,-199.15,0.00040411,2]
[400051059,1767053443492,-178.66,0.00040411,2]
[400051062,1767053443502,-1236.99,0.00040411,2]
[400051064,1767053443511,-150.0,0.00040411,2]
[400051066,1767053443521,-150.0,0.00040411,2]
[400051068,1767053443530,-170.94,0.00040411,2]
[400051070,1767053443540,-150.0,0.00040411,2]
[400051072,1767053443550,-150.0,0.00040411,2]
[400051074,1767053443560,-178.66,0.00040411,2]
[400051076,1767053443569,-150.0,0.00040411,2]
[400051078,1767053443579,-150.0,0.00040411,2]
[400051080,1767053443589,-1221.52,0.00040411,2]
[400051082,1767053443599,-170.94,0.00040411,2]
[400051084,1767053443609,-178.66,0.00040411,2]
[400051086,1767053443619,-178.66,0.00040411,2]
[400051088,1767053443630,-150.0,0.00040411,2]
[400051090,1767053443640,-1221.52,0.00040411,2]
[400051092,1767053443650,-150.0,0.00040411,2]
[400051095,1767053443660,-170.94,0.00040411,2]
[400051097,1767053443670,-150.0,0.00040411,2]
[400051099,1767053443680,-178.66,0.00040411,2]
[400051101,1767053443690,-150.0,0.00040411,2]
[400051103,1767053443699,-170.94,0.00040411,2]
[400051105,1767053443710,-150.0,0.00040411,2]
[400051107,1767053443720,-178.66,0.00040411,2]
[400051109,1767053443729,-170.94,0.00040411,2]
[400051111,1767053443739,-150.0,0.00040411,2]
[400051113,1767053443749,-170.94,0.00040411,2]
[400051115,1767053443759,-178.66,0.00040411,2]
[400051117,1767053443769,-150.0,0.00040411,2]
[400051119,1767053443779,-170.94,0.00040411,2]
[400051121,1767053443790,-150.0,0.00040411,2]
[400051123,1767053443799,-178.66,0.00040411,2]
[400051125,1767053443809,-170.94,0.00040411,2]
[400051127,1767053443820,-150.0,0.00040411,2]
[400051129,1767053443830,-178.66,0.00040411,2]
[400051131,1767053443841,-309.24,0.00040411,2]
[400051134,1767053443851,-1221.52,0.00040411,2]
[400051136,1767053443861,-178.66,0.00040411,2]
[400051138,1767053443871,-298.75,0.00040411,2]
[400051140,1767053443881,-170.94,0.00040411,2]
[400051142,1767053443891,-150.0,0.00040411,2]
[400051144,1767053443902,-300.77,0.00040411,2]
[400051146,1767053443912,-178.66,0.00040411,2]
[400051148,1767053443922,-166.55,0.00040411,2]
[400051150,1767053443932,-150.0,0.00040411,2]
[400051152,1767053443943,-1221.52,0.00040411,2]
[400051154,1767053443953,-178.66,0.00040411,2]
[400051156,1767053443963,-150.0,0.00040411,2]
[400051158,1767053443973,-178.66,0.00040411,2]
[400051160,1767053443982,-150.0,0.00040411,2]
[400051162,1767053443991,-178.66,0.00040411,2]
[400051164,1767053444001,-1221.52,0.00040411,2]
[400051166,1767053444011,-150.0,0.00040411,2]